fUSD/lending_fUSD_20260513
["ID","MTS","AMOUNT","RATE_DAILY","PERIOD"]
[422160113,1778639445000,-29999.99,0.00022562,2]
[422160085,1778639445000,-3603.0,0.00021637,2]
[422160091,1778639445000,-1154.057842,0.00021947,2]
[422160084,1778639445000,-152.0,0.00021618,3]
[422160088,1778639445000,-5000.0,0.00021918,2]
[422160087,1778639445000,-259.361985,0.00021918,2]
[422160089,1778639445000,-1154.057842,0.00021947,2]
[422160086,1778639445000,-552.9209213,0.00021808,24]
[422160094,1778639445000,-667.634439,0.00021947,2]
[422160096,1778639445000,-667.634439,0.00021947,2]
[422160098,1778639445000,-160.0,0.00022,2]
[422160097,1778639445000,-11377.62,0.00021948,2]
[422160099,1778639445000,-300.0,0.00022,2]
[422160100,1778639445000,-168.0,0.00022,2]
[422160092,1778639445000,-1154.057842,0.00021947,2]
[422160103,1778639445000,-154.0,0.00022,2]
[422160102,1778639445000,-166.30535348,0.00022,2]
[422160111,1778639445000,-547.57,0.00022466,2]
[422160109,1778639445000,-720.665,0.00022408,2]
[422160108,1778639445000,-3541.0,0.00022408,2]
[422160118,1778639445000,-530.40334042,0.0002271,2]
[422160106,1778639445000,-450.0,0.00022,2]
[422160117,1778639445000,-151.0,0.000226,2]
[422160104,1778639445000,-287.0,0.00022,2]
[422160105,1778639445000,-151.0,0.00022,2]
[422160095,1778639445000,-667.634439,0.00021947,2]
[422160101,1778639445000,-1062.0,0.00022,2]
[422160107,1778639445000,-243.48705081,0.0002211,2]
[422160112,1778639445000,-1042.9,0.00022466,2]
[422160192,1778639446000,-198.56,0.00024658,2]
[422160184,1778639446000,-319.0,0.00024658,2]
[422160186,1778639446000,-1564.0,0.00024658,2]
[422160187,1778639446000,-418.0,0.00024658,2]
[422160177,1778639446000,-1574.93,0.00024174,2]
[422160178,1778639446000,-543.12,0.00024174,2]
[422160179,1778639446000,-2212.09,0.00024174,2]
[422160180,1778639446000,-5151.57,0.00024174,2]
[422160169,1778639446000,-152.0,0.00023994,4]
[422160173,1778639446000,-155.82595511,0.00024,2]
[422160182,1778639446000,-1332.0,0.00024658,2]
[422160193,1778639446000,-998.11480699,0.00025,2]
[422160190,1778639446000,-186.38,0.00024658,2]
[422160185,1778639446000,-213.12493152,0.00024658,2]
[422160183,1778639446000,-356.0,0.00024658,2]
[422160188,1778639446000,-695.0,0.00024658,2]
[422160189,1778639446000,-1000.0,0.00024658,2]
[422160191,1778639446000,-201.57,0.00024658,2]
[422160194,1778639446000,-2227.60491679,0.00025,2]
[422160196,1778639446000,-7216.82147071,0.00025,2]
[422160198,1778639446000,-150.0,0.00025,2]
[422160197,1778639446000,-151.16911724,0.00025,2]
[422160203,1778639446000,-500.30348779,0.00025499,2]
[422160172,1778639446000,-296.30366588,0.00024,2]
[422160201,1778639446000,-3541.0,0.00025408,2]
[422160181,1778639446000,-1152.13058206,0.0002421,2]
[422160176,1778639446000,-152.09,0.00024174,2]
[422160160,1778639446000,-151.0,0.00023368,2]
[422160174,1778639446000,-500.0,0.00024,2]
[422160202,1778639446000,-496.38,0.0002548,2]
[422160145,1778639446000,-151.0,0.00023288,2]
[422160148,1778639446000,-151.0,0.00023288,2]
[422160146,1778639446000,-151.0,0.00023288,2]
[422160147,1778639446000,-151.0,0.00023288,2]
[422160156,1778639446000,-151.0,0.00023368,2]
[422160150,1778639446000,-151.0,0.00023368,2]
[422160149,1778639446000,-743.4,0.000233,7]
[422160155,1778639446000,-1030.700733,0.00023368,2]
[422160153,1778639446000,-1030.700733,0.00023368,2]
[422160154,1778639446000,-1030.700733,0.00023368,2]
[422160151,1778639446000,-151.0,0.00023368,2]
[422160175,1778639446000,-245.95,0.0002411,2]
[422160152,1778639446000,-1030.700733,0.00023368,2]
[422160157,1778639446000,-151.0,0.00023368,2]
[422160159,1778639446000,-450.198313,0.00023368,2]
[422160161,1778639446000,-450.198313,0.00023368,2]
[422160162,1778639446000,-151.0,0.00023368,2]
[422160167,1778639446000,-12411.95,0.00023895,2]
[422160166,1778639446000,-151.0,0.00023865,7]
[422160163,1778639446000,-450.198313,0.00023368,2]
[422160165,1778639446000,-5203.0,0.0002375,2]
[422160164,1778639446000,-151.0,0.00023368,2]
[422160168,1778639446000,-11377.62,0.00023897,2]
[422160171,1778639446000,-1080.04373929,0.00024,2]
[422160170,1778639446000,-185.73400186,0.00024,2]
[422160158,1778639446000,-450.198313,0.00023368,2]
[422160195,1778639446000,-169.38526351,0.00025,2]
[422160208,1778639446000,-156.662853,0.000255,2]
[422160199,1778639446000,-173.17586745,0.00025,60]
[422160241,1778639446000,-152.0,0.0002637,5]
[422160237,1778639446000,-496.38,0.00026256,2]
[422160234,1778639446000,-496.38,0.00026145,2]
[422160236,1778639446000,-496.38,0.00026201,2]
[422160235,1778639446000,-743.4,0.000262,7]
[422160238,1778639446000,-168.62270051,0.00026273,7]
[422160239,1778639446000,-496.38,0.00026311,2]
[422160243,1778639446000,-198.56,0.00026422,30]
[422160251,1778639446000,-154.0,0.00026654,2]
[422160252,1778639446000,-256.0,0.0002667,2]
[422160253,1778639446000,-496.38,0.00026699,2]
[422160245,1778639446000,-496.38,0.00026477,2]
[422160249,1778639446000,-496.38,0.00026644,2]
[422160242,1778639446000,-201.57,0.00026422,30]
[422160244,1778639446000,-496.38,0.00026422,2]
[422160246,1778639446000,-496.38,0.00026533,2]
[422160247,1778639446000,-496.38,0.00026588,2]
[422160248,1778639446000,-168.62270051,0.00026637,14]
[422160250,1778639446000,-231.0,0.00026654,2]
[422160200,1778639446000,-4288.09249009,0.00025,2]
[422160254,1778639446000,-496.44946358,0.00026754,2]
[422160259,1778639446000,-168.62270051,0.00027001,14]
[422160258,1778639446000,-199.0,0.00027,7]
[422160256,1778639446000,-1048.06336911,0.00027,2]
[422160257,1778639446000,-530.0,0.00027,2]
[422160240,1778639446000,-496.38,0.00026367,2]
[422160233,1778639446000,-496.38,0.0002609,2]
[422160255,1778639446000,-250.0,0.00027,2]
[422160231,1778639446000,-290.0,0.00026027,2]
[422160232,1778639446000,-496.38,0.00026034,2]
[422160204,1778639446000,-562.86777387,0.00025499,2]
[422160205,1778639446000,-300.0,0.00025499,10]
[422160206,1778639446000,-53760.78099193,0.000255,2]
[422160215,1778639446000,-496.38,0.00025702,2]
[422160209,1778639446000,-151.611104,0.000255,2]
[422160210,1778639446000,-496.38,0.00025536,2]
[422160217,1778639446000,-152.09,0.00025786,2]
[422160216,1778639446000,-496.38,0.00025757,2]
[422160212,1778639446000,-198.56,0.0002554,7]
[422160211,1778639446000,-201.57,0.0002554,7]
[422160213,1778639446000,-496.38,0.00025591,2]
[422160214,1778639446000,-496.38,0.00025647,2]
[422160207,1778639446000,-154.028992,0.000255,2]
[422160219,1778639446000,-2212.09,0.00025786,2]
[422160218,1778639446000,-543.12,0.00025786,2]
[422160230,1778639446000,-214.91342137,0.00026,7]
[422160226,1778639446000,-168.62270051,0.0002591,2]
[422160223,1778639446000,-11377.62,0.00025845,7]
[422160225,1778639446000,-1223.0,0.00025908,2]
[422160229,1778639446000,-550.0,0.00026,2]
[422160224,1778639446000,-496.38,0.00025868,2]
[422160222,1778639446000,-496.38,0.00025813,2]
[422160221,1778639446000,-151.0,0.000258,2]
[422160220,1778639446000,-5151.57,0.00025786,2]
[422160227,1778639446000,-496.38,0.00025924,2]
[422160228,1778639446000,-496.38,0.00025979,2]
[422160285,1778639447000,-151.0,0.00027397,2]
[422160293,1778639447000,-151.0,0.00027397,2]
[422160286,1778639447000,-151.0,0.00027397,2]
[422160292,1778639447000,-151.0,0.00027397,2]
[422160287,1778639447000,-151.0,0.00027397,2]
[422160290,1778639447000,-151.0,0.00027397,2]
[422160288,1778639447000,-151.0,0.00027397,2]
[422160291,1778639447000,-151.0,0.00027397,2]
[422160289,1778639447000,-151.0,0.00027397,2]
[422160294,1778639447000,-151.0,0.00027397,2]
[422160296,1778639447000,-151.0,0.00027397,2]
[422160299,1778639447000,-151.0,0.00027397,2]
[422160298,1778639447000,-151.0,0.00027397,2]
[422160297,1778639447000,-151.0,0.00027397,2]
[422160301,1778639447000,-151.0,0.00027397,2]
[422160300,1778639447000,-151.0,0.00027397,2]
[422160303,1778639447000,-151.0,0.00027397,2]
[422160306,1778639447000,-151.0,0.00027397,2]
[422160283,1778639447000,-327.548371,0.00027397,2]
[422160295,1778639447000,-151.0,0.00027397,2]
[422160281,1778639447000,-327.548371,0.00027397,2]
[422160267,1778639447000,-4165.49025695,0.0002739,2]
[422160282,1778639447000,-327.548371,0.00027397,2]
[422160260,1778639447000,-151.0,0.000271,2]
[422160262,1778639447000,-8176.6069915,0.00027152,2]
[422160263,1778639447000,-2650.8913718,0.0002716,2]
[422160261,1778639447000,-4416.55036381,0.00027111,2]
[422160264,1778639447000,-6614.3485678,0.00027283,2]
[422160266,1778639447000,-168.62270051,0.00027364,30]
[422160269,1778639447000,-151.0,0.00027397,2]
[422160276,1778639447000,-327.548371,0.00027397,2]
[422160277,1778639447000,-327.548371,0.00027397,2]
[422160284,1778639447000,-327.548371,0.00027397,2]
[422160265,1778639447000,-46959.6418393,0.00027283,2]
[422160268,1778639447000,-8229.07176112,0.0002739,2]
[422160278,1778639447000,-327.548371,0.00027397,2]
[422160271,1778639447000,-150.0,0.00027397,2]
[422160273,1778639447000,-327.548371,0.00027397,2]
[422160275,1778639447000,-327.548371,0.00027397,2]
[422160272,1778639447000,-300.0,0.00027397,2]
[422160274,1778639447000,-327.548371,0.00027397,2]
[422160280,1778639447000,-327.548371,0.00027397,2]
[422160279,1778639447000,-327.548371,0.00027397,2]
[422160270,1778639447000,-500.0,0.00027397,2]
[422160309,1778639447000,-151.0,0.00027397,2]
[422160304,1778639447000,-151.0,0.00027397,2]
[422160305,1778639447000,-151.0,0.00027397,2]
[422160334,1778639447000,-214.91342137,0.00028,10]
[422160336,1778639447000,-185.49,0.00028,2]
[422160337,1778639447000,-185.49,0.00028,2]
[422160333,1778639447000,-151.0,0.00028,7]
[422160339,1778639447000,-3541.0,0.00028408,2]
[422160335,1778639447000,-185.49,0.00028,2]
[422160338,1778639447000,-5000.0,0.00028108,2]
[422160340,1778639447000,-184.57,0.00028493,2]
[422160343,1778639447000,-236.00317872,0.00028541,2]
[422160332,1778639447000,-151.0,0.00028,7]
[422160344,1778639447000,-152.0,0.00028746,6]
[422160346,1778639447000,-229.008359,0.00028767,7]
[422160347,1778639447000,-229.008359,0.00028767,7]
[422160341,1778639447000,-743.4,0.000285,7]
[422160349,1778639447000,-229.008359,0.00028767,7]
[422160342,1778639447000,-1561.696031,0.000285,2]
[422160350,1778639447000,-229.008359,0.00028767,7]
[422160352,1778639447000,-229.008359,0.00028767,7]
[422160351,1778639447000,-229.008359,0.00028767,7]
[422160302,1778639447000,-261.516873,0.00027397,2]
[422160345,1778639447000,-500.0,0.00028767,2]
[422160331,1778639447000,-306.408303,0.00028,7]
[422160348,1778639447000,-229.008359,0.00028767,7]
[422160325,1778639447000,-28225.14178152,0.00028,2]
[422160330,1778639447000,-306.408303,0.00028,7]
[422160308,1778639447000,-151.0,0.00027397,2]
[422160307,1778639447000,-151.0,0.00027397,2]
[422160310,1778639447000,-151.0,0.00027397,2]
[422160312,1778639447000,-180.46419471,0.00027397,30]
[422160313,1778639447000,-172.74,0.000274,7]
[422160316,1778639447000,-168.62270051,0.00027728,60]
[422160318,1778639447000,-11377.62,0.00027794,7]
[422160319,1778639447000,-500.0,0.000278,7]
[422160317,1778639447000,-151.0,0.00027735,7]
[422160314,1778639447000,-2283.94,0.000274,14]
[422160315,1778639447000,-213.68961277,0.00027534,2]
[422160322,1778639447000,-28555.0982439,0.00027904,2]
[422160320,1778639447000,-4923.2176751,0.0002783,2]
[422160323,1778639447000,-151.0,0.00027904,7]
[422160327,1778639447000,-600.0,0.00028,2]
[422160329,1778639447000,-306.408303,0.00028,7]
[422160321,1778639447000,-4131.0468352,0.0002783,2]
[422160326,1778639447000,-151.0,0.00028,2]
[422160324,1778639447000,-151.0,0.00027904,7]
[422160311,1778639447000,-242.165011,0.00027397,2]
[422160328,1778639447000,-306.408303,0.00028,7]
[422160394,1778639448000,-1154.057842,0.00029,7]
[422160391,1778639448000,-1500.0,0.00029,2]
[422160388,1778639448000,-257.723955,0.00029,7]
[422160392,1778639448000,-1154.057842,0.00029,7]
[422160390,1778639448000,-151.0,0.00029,7]
[422160386,1778639448000,-151.0,0.00029,7]
[422160387,1778639448000,-299.632183,0.00029,7]
[422160383,1778639448000,-151.0,0.00029,7]
[422160384,1778639448000,-151.0,0.00029,7]
[422160404,1778639448000,-5026.32250966,0.00029251,2]
[422160385,1778639448000,-450.198313,0.00029,7]
[422160389,1778639448000,-450.198313,0.00029,7]
[422160393,1778639448000,-1154.057842,0.00029,7]
[422160409,1778639448000,-10402.19322433,0.0003,5]
[422160395,1778639448000,-1154.057842,0.00029,7]
[422160397,1778639448000,-667.634439,0.00029,7]
[422160400,1778639448000,-151.0,0.00029,7]
[422160401,1778639448000,-667.634439,0.00029,7]
[422160398,1778639448000,-151.0,0.00029,7]
[422160403,1778639448000,-152.842095,0.00029,7]
[422160402,1778639448000,-151.0,0.00029,7]
[422160405,1778639448000,-2283.94,0.000295,14]
[422160408,1778639448000,-75235.96392217,0.000299,2]
[422160407,1778639448000,-11377.62,0.00029742,7]
[422160406,1778639448000,-1500.0,0.000295,2]
[422160382,1778639448000,-450.198313,0.00029,7]
[422160396,1778639448000,-667.634439,0.00029,7]
[422160378,1778639448000,-1030.700733,0.00029,7]
[422160358,1778639448000,-229.008359,0.00028767,7]
[422160372,1778639448000,-151.0,0.00029,7]
[422160353,1778639448000,-229.008359,0.00028767,7]
[422160354,1778639448000,-229.008359,0.00028767,7]
[422160355,1778639448000,-229.008359,0.00028767,7]
[422160356,1778639448000,-229.008359,0.00028767,7]
[422160357,1778639448000,-229.008359,0.00028767,7]
[422160417,1778639448000,-1500.0,0.0003,2]
[422160361,1778639448000,-229.008359,0.00028767,7]
[422160359,1778639448000,-229.008359,0.00028767,7]
[422160362,1778639448000,-151.0,0.00028997,7]
[422160363,1778639448000,-2034.63808283,0.00029,7]
[422160364,1778639448000,-200000.83820517,0.00029,2]
[422160360,1778639448000,-229.008359,0.00028767,7]
[422160380,1778639448000,-271.508626,0.00029,7]
[422160367,1778639448000,-327.548371,0.00029,7]
[422160369,1778639448000,-327.548371,0.00029,7]
[422160365,1778639448000,-151.0,0.00029,7]
[422160366,1778639448000,-151.0,0.00029,7]
[422160381,1778639448000,-450.198313,0.00029,7]
[422160376,1778639448000,-1030.700733,0.00029,7]
[422160374,1778639448000,-241.036998,0.00029,7]
[422160377,1778639448000,-1030.700733,0.00029,7]
[422160371,1778639448000,-151.0,0.00029,7]
[422160379,1778639448000,-151.0,0.00029,7]
[422160370,1778639448000,-327.548371,0.00029,7]
[422160373,1778639448000,-151.0,0.00029,7]
[422160375,1778639448000,-1030.700733,0.00029,7]
[422160368,1778639448000,-327.548371,0.00029,7]
[422160416,1778639448000,-650.0,0.0003,2]
[422160399,1778639448000,-667.634439,0.00029,7]
[422160411,1778639448000,-2000.0,0.0003,3]
[422160444,1778639448000,-157.0,0.00030636,30]
[422160445,1778639448000,-152.0,0.0003071,30]
[422160443,1778639448000,-1062.0,0.00030636,30]
[422160447,1778639448000,-151.0,0.000309,7]
[422160446,1778639448000,-208.21,0.00030834,7]
[422160451,1778639448000,-6371.5036442,0.00031032,2]
[422160448,1778639448000,-1098.5183482,0.0003095,2]
[422160449,1778639448000,-921.7611419,0.0003095,2]
[422160450,1778639448000,-349.33688217,0.00031,5]
[422160453,1778639448000,-152.0,0.00031122,7]
[422160457,1778639448000,-3541.0,0.00031408,2]
[422160456,1778639448000,-743.4,0.000312,7]
[422160455,1778639448000,-2283.94,0.000312,14]
[422160459,1778639448000,-500.0,0.00031507,2]
[422160465,1778639448000,-164.9741284,0.00031636,30]
[422160454,1778639448000,-158.09312724,0.00031122,5]
[422160461,1778639448000,-154.0,0.00031622,30]
[422160460,1778639448000,-217.0,0.00031507,30]
[422160464,1778639448000,-165.83592434,0.00031622,30]
[422160463,1778639448000,-151.0,0.00031622,30]
[422160462,1778639448000,-287.0,0.00031622,30]
[422160466,1778639448000,-168.0,0.00031636,30]
[422160468,1778639448000,-157.0,0.00031636,30]
[422160467,1778639448000,-1062.0,0.00031636,30]
[422160470,1778639448000,-151.0,0.00031685,7]
[422160414,1778639448000,-795.91626648,0.0003,2]
[422160469,1778639448000,-151.0,0.00031685,7]
[422160452,1778639448000,-200.0,0.00031096,2]
[422160441,1778639448000,-160.0,0.00030636,30]
[422160458,1778639448000,-1000.0,0.000315,7]
[422160437,1778639448000,-287.0,0.00030622,30]
[422160415,1778639448000,-151.0,0.0003,5]
[422160412,1778639448000,-10116.45052574,0.0003,2]
[422160442,1778639448000,-168.0,0.00030636,30]
[422160410,1778639448000,-322.40623145,0.0003,5]
[422160413,1778639448000,-4999.0,0.0003,2]
[422160419,1778639448000,-500.0,0.00030137,2]
[422160429,1778639448000,-10478.1124041,0.00030342,2]
[422160421,1778639448000,-274.56,0.00030137,2]
[422160425,1778639448000,-500.0,0.00030187,2]
[422160420,1778639448000,-221.55,0.00030137,2]
[422160422,1778639448000,-200.0,0.00030137,2]
[422160427,1778639448000,-591.4938163,0.00030205,2]
[422160426,1778639448000,-1824.4476274,0.00030196,2]
[422160418,1778639448000,-643.49060612,0.0003013,2]
[422160432,1778639448000,-5000.0,0.00030369,2]
[422160428,1778639448000,-1475.8606552,0.00030342,2]
[422160423,1778639448000,-299.30487589,0.00030137,40]
[422160430,1778639448000,-5000.0,0.00030369,2]
[422160433,1778639448000,-5000.0,0.00030369,2]
[422160439,1778639448000,-158.0,0.00030622,30]
[422160431,1778639448000,-5000.0,0.00030369,2]
[422160434,1778639448000,-5000.0,0.00030369,2]
[422160438,1778639448000,-151.0,0.00030622,30]
[422160435,1778639448000,-150.66414301,0.000306,30]
[422160436,1778639448000,-154.0,0.00030622,30]
[422160440,1778639448000,-156.23988985,0.00030636,30]
[422160424,1778639448000,-290.0,0.00030137,2]
[422160523,1778639449000,-151.0,0.00033457,7]
[422160508,1778639449000,-151.0,0.00033,7]
[422160522,1778639449000,-151.0,0.00033457,7]
[422160524,1778639449000,-151.0,0.00033457,7]
[422160521,1778639449000,-327.548369,0.00033457,7]
[422160513,1778639449000,-43133.0,0.00033419,60]
[422160506,1778639449000,-306.408303,0.00033,7]
[422160512,1778639449000,-40045.0,0.00033229,60]
[422160510,1778639449000,-350.0,0.00033014,5]
[422160504,1778639449000,-306.408303,0.00033,7]
[422160499,1778639449000,-46605.70992294,0.00033,5]
[422160514,1778639449000,-40045.0,0.00033457,60]
[422160511,1778639449000,-43133.0,0.0003321,60]
[422160516,1778639449000,-151.0,0.00033457,7]
[422160525,1778639449000,-1030.700733,0.00033457,7]
[422160519,1778639449000,-327.548371,0.00033457,7]
[422160518,1778639449000,-327.548371,0.00033457,7]
[422160515,1778639449000,-151.0,0.00033457,7]
[422160526,1778639449000,-1030.700733,0.00033457,7]
[422160537,1778639449000,-450.198321,0.00033457,7]
[422160536,1778639449000,-151.0,0.00033457,7]
[422160538,1778639449000,-246.240013,0.00033457,7]
[422160539,1778639449000,-1154.057842,0.00033457,7]
[422160540,1778639449000,-1154.057842,0.00033457,7]
[422160527,1778639449000,-1030.700733,0.00033457,7]
[422160528,1778639449000,-1030.700731,0.00033457,7]
[422160530,1778639449000,-151.0,0.00033457,7]
[422160532,1778639449000,-450.198313,0.00033457,7]
[422160498,1778639449000,-2283.94,0.000329,14]
[422160517,1778639449000,-327.548371,0.00033457,7]
[422160503,1778639449000,-176.999345,0.00033,14]
[422160474,1778639449000,-229.00835,0.00031685,7]
[422160501,1778639449000,-6317.88444376,0.00033,120]
[422160534,1778639449000,-151.0,0.00033457,7]
[422160478,1778639449000,-498.03246933,0.00032,120]
[422160480,1778639449000,-700.0,0.00032,2]
[422160472,1778639449000,-229.008359,0.00031685,7]
[422160473,1778639449000,-229.008359,0.00031685,7]
[422160471,1778639449000,-229.008359,0.00031685,7]
[422160475,1778639449000,-11377.62,0.00031691,7]
[422160477,1778639449000,-160.0,0.00032,30]
[422160476,1778639449000,-152.0,0.0003171,30]
[422160482,1778639449000,-200.0,0.00032055,2]
[422160483,1778639449000,-1620.0,0.0003212,3]
[422160484,1778639449000,-156.38411109,0.00032421,105]
[422160488,1778639449000,-151.0,0.00032622,30]
[422160491,1778639449000,-157.0,0.00032636,30]
[422160494,1778639449000,-151.0,0.00032877,7]
[422160490,1778639449000,-1062.0,0.00032636,30]
[422160493,1778639449000,-169.4497641,0.00032876,2]
[422160495,1778639449000,-151.0,0.00032877,7]
[422160486,1778639449000,-154.0,0.00032622,30]
[422160485,1778639449000,-151.0,0.000325,5]
[422160487,1778639449000,-287.0,0.00032622,30]
[422160489,1778639449000,-168.0,0.00032636,30]
[422160492,1778639449000,-152.0,0.0003271,30]
[422160497,1778639449000,-154.519386,0.00032877,7]
[422160507,1778639449000,-306.408299,0.00033,7]
[422160509,1778639449000,-151.0,0.00033,7]
[422160502,1778639449000,-2313.999999,0.00033,30]
[422160496,1778639449000,-151.0,0.00032877,7]
[422160500,1778639449000,-29636.96232064,0.00033,3]
[422160505,1778639449000,-306.408303,0.00033,7]
[422160531,1778639449000,-450.198313,0.00033457,7]
[422160591,1778639449000,-526.0,0.00035,5]
[422160535,1778639449000,-450.198313,0.00033457,7]
[422160577,1778639449000,-5151.57,0.00034544,60]
[422160576,1778639449000,-2212.09,0.00034544,60]
[422160575,1778639449000,-1151.48896166,0.00034481,2]
[422160578,1778639449000,-40045.0,0.00034601,60]
[422160573,1778639449000,-43133.0,0.00034468,60]
[422160580,1778639449000,-287.0,0.00034622,30]
[422160579,1778639449000,-154.0,0.00034622,30]
[422160582,1778639449000,-168.0,0.00034636,30]
[422160581,1778639449000,-151.0,0.00034622,30]
[422160583,1778639449000,-1062.0,0.00034636,30]
[422160586,1778639449000,-153.133849,0.00034677,7]
[422160584,1778639449000,-157.0,0.00034636,30]
[422160588,1778639449000,-40045.0,0.0003483,60]
[422160585,1778639449000,-43133.0,0.00034677,60]
[422160587,1778639449000,-152.0,0.0003471,30]
[422160589,1778639449000,-43133.0,0.00034887,60]
[422160593,1778639449000,-1558.65491597,0.00035,2]
[422160590,1778639449000,-350.0,0.00034931,5]
[422160592,1778639449000,-202.30578908,0.00035,120]
[422160594,1778639449000,-151.0,0.00035,14]
[422160596,1778639449000,-186.76281386,0.00035,120]
[422160600,1778639449000,-43133.0,0.00035097,60]
[422160595,1778639449000,-151.0,0.00035,5]
[422160597,1778639449000,-57118.5,0.00035,7]
[422160599,1778639449000,-40045.0,0.00035059,60]
[422160533,1778639449000,-151.0,0.00033457,7]
[422160602,1778639449000,-1500.0,0.000352,7]
[422160601,1778639449000,-172.74,0.000352,30]
[422160603,1778639449000,-412.9687175,0.00035253,120]
[422160574,1778639449000,-1000.0,0.00034481,2]
[422160572,1778639449000,-3541.0,0.00034408,2]
[422160598,1778639449000,-150.0,0.00035,2]
[422160570,1778639449000,-43133.0,0.00034258,60]
[422160571,1778639449000,-40045.0,0.00034372,60]
[422160541,1778639449000,-1154.057842,0.00033457,7]
[422160543,1778639449000,-667.634439,0.00033457,7]
[422160544,1778639449000,-667.634439,0.00033457,7]
[422160542,1778639449000,-1154.05784648,0.00033457,7]
[422160546,1778639449000,-667.634432,0.00033457,7]
[422160547,1778639449000,-151.0,0.000335,5]
[422160552,1778639449000,-43133.0,0.00033629,60]
[422160554,1778639449000,-1062.0,0.00033636,30]
[422160553,1778639449000,-168.0,0.00033636,30]
[422160549,1778639449000,-154.0,0.00033622,30]
[422160548,1778639449000,-151.06936244,0.000336,120]
[422160551,1778639449000,-151.0,0.00033622,30]
[422160550,1778639449000,-287.0,0.00033622,30]
[422160545,1778639449000,-667.634439,0.00033457,7]
[422160567,1778639449000,-2283.94,0.000341,14]
[422160556,1778639449000,-11377.62,0.00033639,14]
[422160562,1778639449000,-43133.0,0.00033839,60]
[422160563,1778639449000,-40045.0,0.00033915,60]
[422160564,1778639449000,-350.0,0.00033973,5]
[422160559,1778639449000,-152.0,0.0003371,30]
[422160557,1778639449000,-40045.0,0.00033686,60]
[422160569,1778639449000,-290.0,0.00034247,2]
[422160561,1778639449000,-248.69041678,0.00033781,7]
[422160566,1778639449000,-628.11,0.00034056,30]
[422160560,1778639449000,-425.30219549,0.00033781,7]
[422160568,1778639449000,-40045.0,0.00034144,60]
[422160558,1778639449000,-743.4,0.000337,7]
[422160565,1778639449000,-43133.0,0.00034048,60]
[422160555,1778639449000,-157.0,0.00033636,30]
[422160631,1778639450000,-151.0,0.00035622,30]
[422160648,1778639450000,-40216.0,0.00036088,60]
[422160632,1778639450000,-168.0,0.00035636,30]
[422160634,1778639450000,-157.0,0.00035636,30]
[422160633,1778639450000,-1062.0,0.00035636,30]
[422160639,1778639450000,-743.4,0.000358,7]
[422160641,1778639450000,-155.32286247,0.00035894,14]
[422160638,1778639450000,-184.09,0.00035785,30]
[422160643,1778639450000,-281.24825172,0.000359,120]
[422160640,1778639450000,-350.0,0.0003589,5]
[422160650,1778639450000,-179.53,0.00036108,5]
[422160637,1778639450000,-152.0,0.0003571,30]
[422160651,1778639450000,-40216.0,0.00036279,60]
[422160649,1778639450000,-179.53,0.00036108,5]
[422160644,1778639450000,-173.41064245,0.00036044,2]
[422160647,1778639450000,-1000.0,0.00036048,2]